bitfinex-derivatives/quotes_ETHF0:USTF0_20241023
["timestamp","ask_amount","ask_price","bid_price","bid_amount"]
[1729709821441,1.4057,2492.8,2492.7,0.40159]
[1729709821639,5.74128086,2492.8,2492.6,0.40159]
[1729709821843,6.14286086,2492.8,2492.7,0.40159]
[1729709823038,9.75328086,2492.8,2492.4,3.2078]
[1729709823239,3.2078,2492.7,2492.1,1.787]
[1729709823446,0.40166,2492.3,2492.2,0.40166]
[1729709823839,0.40167,2492.2,2492.1,2.18868]
[1729709824145,7.81972708,2492.2,2492.1,2.18868]
[1729709824735,7.81972708,2492.2,2492.1,0.40168]
[1729709824935,7.41805708,2492.2,2492.1,0.40168]
[1729709825344,7.81972708,2492.2,2492.1,0.40168]
[1729709825744,7.41805708,2492.2,2492.0,3.2078]
[1729709825954,7.81973708,2492.2,2492.1,0.40168]
[1729709827338,13.76585708,2492.2,2491.8,40.8]
[1729709827544,0.40171,2492.0,2491.9,0.40171]
[1729709827939,0.40172,2491.9,2491.8,41.20172]
[1729709828347,4.89257648,2491.9,2491.8,41.20172]
[1729709828745,8.03257648,2491.9,2491.8,40.8]
[1729709828952,1.00438,2491.7,2491.2,0.40182]
[1729709829142,0.40183,2491.2,2491.1,1.713]
[1729709829346,3.14,2491.3,2491.0,3.2078]
[1729709829551,1.81545,2491.1,2491.0,3.60966]
[1729709829949,7.17966383,2491.1,2491.0,44.40966]
[1729709830146,7.58151383,2491.1,2491.0,44.0078]
[1729709830349,7.58151383,2491.1,2491.0,44.40966]
[1729709830742,7.17966383,2491.1,2491.0,44.40966]
[1729709831451,7.58151383,2491.1,2491.0,44.0078]
[1729709831653,7.58151383,2491.1,2491.0,44.40966]
[1729709832154,7.58151383,2491.1,2491.0,44.0078]
[1729709832549,7.58151383,2491.1,2490.7,3.2078]
[1729709832550,0.40189,2490.8,2490.7,3.2078]
[1729709833059,10.31966383,2491.1,2490.7,40.8]
[1729709833060,1.4121,2491.0,2490.7,40.8]
[1729709833248,0.40189,2490.8,2490.7,41.2019]
[1729709833443,5.054904,2490.9,2490.7,41.2019]
[1729709833648,0.40189,2490.8,2490.7,0.4019]
[1729709833951,0.40189,2490.8,2490.4,1.713]
[1729709833952,7.50045235,2490.8,2490.4,1.713]
[1729709834143,7.50045235,2490.8,2490.3,13.2518]
[1729709834144,3.14,2490.6,2490.3,51.24597]
[1729709834345,0.40196,2490.4,2490.3,51.24597]
[1729709834549,1.4209,2490.5,2490.4,0.40196]
[1729709834550,7.57340235,2490.5,2490.4,0.40196]
[1729709834750,7.57344235,2490.5,2490.3,51.246]
[1729709834955,7.17145235,2490.5,2490.3,51.246]
[1729709835258,7.17145235,2490.5,2490.3,50.844]
[1729709835259,0.402,2490.4,2490.3,50.844]
[1729709835449,7.17145235,2490.5,2490.2,1.713]
[1729709835652,7.57345235,2490.5,2490.3,0.40201]
[1729709835852,7.57345235,2490.5,2490.2,2.11502]
[1729709836053,7.57345235,2490.5,2490.3,0.40201]
[1729709836847,7.57345235,2490.5,2490.1,0.40204]
[1729709836848,0.40202,2490.3,2490.1,0.40204]
[1729709837053,3.14,2490.2,2490.0,40.8]
[1729709837255,0.4021,2489.8,2489.6,0.40212]
[1729709837457,6.74989,2489.9,2489.6,0.40212]
[1729709837660,6.00930237,2489.7,2489.6,0.40213]
[1729709837954,1.4326,2489.7,2489.6,41.20213]
[1729709838158,6.00930237,2489.7,2489.6,41.20213]
[1729709842268,3.2078,2489.9,2489.8,0.4021]
[1729709842761,3.2078,2489.9,2489.7,0.4021]
[1729709842762,7.90114402,2489.9,2489.7,0.4021]
[1729709842967,1.3667,2489.8,2489.7,0.4021]
[1729709843266,5.65796402,2489.8,2489.7,0.4021]
[1729709846568,4.29126402,2489.8,2489.7,4.4189]
[1729709846761,1.82282,2490.3,2490.1,0.40204]
[1729709846961,1.82282,2490.3,2490.2,0.40203]
[1729709847161,0.40205,2490.1,2489.6,46.43239]
[1729709847362,3.60985,2490.1,2490.0,0.40206]
[1729709847563,0.40207,2490.0,2489.9,0.40207]
[1729709847969,8.20413117,2490.1,2489.7,0.40207]
[1729709848163,8.20413117,2490.1,2489.8,0.40205]
[1729709848360,7.80212117,2490.1,2489.6,42.2193]
[1729709848560,7.80212117,2490.1,2490.0,0.40202]
[1729709848871,4.5792,2490.6,2490.5,0.40194]
[1729709849175,4.33595813,2490.5,2490.3,0.40196]
[1729709849374,4.33595813,2490.5,2490.4,0.40196]
[1729709849573,6.48682,2490.7,2490.4,0.40196]
[1729709849871,4.1822646,2490.5,2490.4,0.40196]
[1729709850174,6.0849,2490.7,2490.5,0.40193]
[1729709850371,6.0849,2490.7,2490.2,0.40199]
[1729709850570,4.1822646,2490.5,2490.4,0.40196]
[1729709850770,4.1822646,2490.6,2490.5,0.40194]
[1729709850968,4.1822646,2490.6,2490.2,4.06477]
[1729709850969,6.0849,2490.7,2490.6,0.40193]
[1729709851168,6.0849,2490.7,2490.6,40.8]
[1729709851364,10.40420794,2490.7,2490.6,41.20193]
[1729709852375,3.2078,2491.1,2491.0,0.40186]
[1729709852675,3.2078,2491.1,2491.0,4.41626]
[1729709852880,3.2078,2491.4,2491.0,5.7284]
[1729709853075,3.60961,2491.4,2491.2,0.40183]
[1729709853272,3.2078,2491.4,2491.2,0.40183]
[1729709853472,3.60961,2491.4,2491.2,0.40183]
[1729709853967,0.40182,2491.3,2491.1,0.40184]
[1729709854374,3.60961,2491.4,2491.2,0.40182]
[1729709854884,3.2078,2491.4,2491.3,0.40181]
[1729709855984,3.6096,2491.4,2491.3,0.40181]
[1729709857483,3.2078,2491.4,2491.2,0.40182]
[1729709857677,3.6096,2491.4,2491.3,0.40181]
[1729709857981,3.6096,2491.4,2491.0,1.714]
[1729709858182,0.40181,2491.3,2491.2,0.40182]
[1729709858477,0.40186,2491.1,2490.9,2.10787]
[1729709858675,2.9649,2491.2,2491.1,0.40185]
[1729709859075,4.45135704,2491.2,2491.1,4.41625]
[1729709859378,3.2078,2491.4,2491.3,0.40181]
[1729709859379,3.6096,2491.4,2491.3,0.40181]
[1729709859781,7.83640707,2491.4,2491.3,0.40181]
[1729709859982,0.40181,2491.3,2491.2,0.40182]
[1729709860282,8.23821707,2491.4,2491.2,0.40182]
[1729709860482,8.23821707,2491.4,2491.3,0.40181]
[1729709860779,7.83640707,2491.4,2490.9,1.706]
[1729709860984,0.40182,2491.3,2490.9,1.706]
[1729709861175,8.23821707,2491.4,2491.2,0.40183]
[1729709861370,7.83640707,2491.4,2491.1,0.40184]
[1729709861570,0.40183,2491.3,2491.2,0.40183]
[1729709861976,0.40183,2491.3,2491.1,0.40183]
[1729709862483,0.40183,2491.3,2491.2,0.40183]
[1729709862684,0.40183,2491.3,2490.8,4.93061]
[1729709862883,0.40181,2491.3,2491.1,0.40183]
[1729709863083,7.83640707,2491.4,2490.9,1.706]
[1729709863286,0.40185,2491.1,2491.0,0.40185]
[1729709863479,7.83640707,2491.4,2490.7,4.73316372]
[1729709863785,0.40186,2491.0,2490.9,0.40186]
[1729709863979,0.40188,2490.9,2490.8,2.10789]
[1729709864180,0.40188,2490.9,2490.8,1.706]
[1729709864181,3.23538,2490.9,2490.8,1.706]
[1729709864486,3.23538,2490.9,2490.8,2.10789]
[1729709864677,2.8335,2490.9,2490.8,2.10789]
[1729709865980,3.23538,2490.9,2490.8,2.10789]
[1729709866379,2.8335,2490.9,2490.8,0.40189]
[1729709866585,3.23538,2490.9,2490.8,0.40189]
[1729709867088,2.8335,2490.9,2490.8,0.40189]
[1729709867382,3.23538,2490.9,2490.8,0.40189]
[1729709867783,2.8335,2490.9,2490.8,0.40189]
[1729709869481,3.23538,2490.9,2490.8,0.40189]
[1729709870184,0.40189,2490.8,2490.7,2.1079]
[1729709870579,3.23539,2490.9,2490.8,0.40189]
[1729709871185,3.23539,2490.9,2490.7,1.706]
[1729709871186,0.40189,2490.8,2490.7,2.1079]
[1729709871690,3.23538,2490.9,2490.8,0.40189]
[1729709871987,0.4019,2490.8,2490.7,0.4019]
[1729709872374,2.8335,2490.9,2490.7,0.4019]
[1729709872578,3.23539,2490.9,2490.8,0.40189]
[1729709874883,2.8335,2490.9,2490.8,0.40189]
[1729709875785,0.40182,2491.3,2491.2,0.40182]
[1729709875983,1.3812,2491.3,2491.2,0.40182]
[1729709876183,6.00740808,2491.3,2491.2,0.40182]
[1729709876384,1.3812,2491.3,2491.2,0.40182]
[1729709876789,1.78301,2491.3,2491.2,0.40182]
[1729709877286,1.3812,2491.3,2491.2,0.40182]
[1729709877791,1.78301,2491.3,2491.2,0.40182]
[1729709878486,1.78301,2491.3,2490.9,1.0047]
[1729709878691,0.40189,2490.9,2490.8,0.40188]
[1729709878897,0.40194,2490.6,2490.5,0.40193]
[1729709879981,7.41878728,2490.9,2490.3,40.8]
[1729709880292,0.40193,2490.6,2490.5,0.40194]
[1729709880896,3.14,2490.7,2490.3,40.8]
[1729709881193,0.40196,2490.4,2490.3,42.90797]
[1729709881389,0.40196,2490.4,2490.3,42.506]
[1729709882290,0.40196,2490.4,2490.3,40.8]
[1729709882794,0.40201,2490.1,2489.9,0.40204]
[1729709882994,0.40201,2490.1,2490.0,0.40202]
[1729709883188,7.59363747,2490.4,2489.9,1.706]
[1729709883495,0.40201,2490.1,2490.0,41.20202]
[1729709883883,0.40199,2490.2,2490.1,0.402]
[1729709884088,0.40199,2490.2,2490.0,41.20202]
[1729709884287,7.59363747,2490.4,2490.1,0.40201]
[1729709884491,0.40199,2490.2,2490.1,0.40201]
[1729709884690,0.40198,2490.3,2490.2,0.40198]
[1729709885196,0.40199,2490.2,2490.1,0.402]
[1729709885690,4.56111306,2490.3,2490.1,0.402]
[1729709885994,0.40199,2490.2,2490.1,0.402]
[1729709886491,1.3955,2490.5,2490.0,40.8]
[1729709886697,0.402,2490.2,2490.1,0.402]
[1729709886899,0.402,2490.2,2489.9,1.706]
[1729709887091,0.402,2490.2,2490.0,0.40201]
[1729709887292,1.4841,2490.1,2490.0,0.40201]
[1729709889094,1.4841,2490.1,2489.9,42.506]
[1729709889591,0.40202,2490.0,2489.9,42.90803]
[1729709889798,0.40202,2490.0,2489.9,42.506]
[1729709889993,0.40202,2490.0,2489.9,40.8]
[1729709890496,11.80275138,2490.0,2489.9,40.8]
[1729709890792,11.80275138,2490.0,2489.6,0.40208]
[1729709890793,16.06383138,2490.0,2489.6,0.40208]
[1729709891099,0.40206,2489.8,2489.7,0.40207]
[1729709891402,1.4268,2489.9,2489.8,0.40206]
[1729709892290,1.4268,2489.9,2489.5,8.87075]
[1729709892291,3.2078,2490.0,2489.9,0.40204]
[1729709892698,3.2078,2490.0,2489.9,41.20204]
[1729709892886,3.60982,2490.0,2489.9,41.20204]
[1729709893089,3.2078,2490.0,2489.9,41.20204]
[1729709893697,1.3982,2490.3,2490.2,0.40199]
[1729709894095,5.70026232,2490.3,2490.2,0.40199]
[1729709894689,1.3982,2490.3,2490.2,0.40199]
[1729709894898,3.2078,2490.6,2490.5,0.40194]
[1729709895092,1.4319,2490.8,2490.4,3.14]
[1729709895295,1.4319,2490.8,2490.4,6.3478]
[1729709895500,0.40193,2490.6,2490.5,0.40193]
[1729709896099,0.40193,2490.6,2490.5,0.40194]
[1729709896401,4.62547379,2490.7,2490.2,4.845]
[1729709896599,0.40195,2490.5,2490.4,0.40195]
[1729709897299,0.40193,2490.6,2490.5,0.40193]
[1729709897599,4.75820822,2490.6,2490.5,0.40193]
[1729709897796,4.35627822,2490.6,2490.4,0.40195]
[1729709898093,4.35627822,2490.6,2490.2,1.705]
[1729709898294,4.35627822,2490.6,2490.5,0.40194]
[1729709898295,0.40194,2490.6,2490.5,0.40194]
[1729709900997,0.40194,2490.6,2490.2,2.70997]
[1729709900998,1.4319,2490.8,2490.2,2.70997]
[1729709901295,1.4319,2490.8,2490.7,0.40191]
[1729709901600,1.3817,2490.9,2490.8,0.40189]
[1729709903604,1.5139,2491.0,2490.7,3.2078]
[1729709903802,1.5139,2491.0,2490.9,0.40188]
[1729709904308,1.83861,2491.3,2491.2,0.40183]
[1729709904606,2.922,2491.3,2491.2,0.40183]
[1729709904900,3.32381,2491.3,2491.2,0.40183]
[1729709905504,2.922,2491.3,2491.2,0.40183]
[1729709905707,3.32381,2491.3,2491.2,0.40183]
[1729709905906,2.922,2491.3,2491.2,0.40183]
[1729709906106,3.32381,2491.3,2491.2,0.40183]
[1729709906510,2.922,2491.3,2491.2,0.40183]
[1729709907106,3.32381,2491.3,2491.2,0.40183]
[1729709907416,2.922,2491.3,2491.2,0.40183]
[1729709908908,3.32381,2491.3,2491.2,0.40183]
[1729709910207,2.922,2491.3,2491.0,42.505]
[1729709910414,3.32382,2491.3,2491.2,0.40183]
[1729709911113,2.922,2491.3,2491.2,0.40183]
[1729709913011,2.922,2491.3,2491.0,42.505]
[1729709913216,0.40185,2491.2,2491.1,0.40184]
[1729709913420,7.53725896,2491.3,2491.2,0.40183]
[1729709913813,7.53725896,2491.3,2491.2,41.20183]
[1729709914013,4.61525896,2491.3,2491.2,41.20183]
[1729709914213,0.40178,2491.6,2491.5,0.40178]
[1729709916315,7.5853,2491.7,2491.2,40.8]
[1729709916516,0.40181,2491.4,2491.3,0.4018]
[1729709916915,4.84885508,2491.4,2491.3,0.4018]
[1729709917317,4.44704508,2491.4,2491.3,0.4018]
[1729709917720,4.44704508,2491.5,2491.4,0.4018]
[1729709917917,0.40178,2491.5,2491.4,0.4018]
[1729709918317,0.40177,2491.6,2491.5,0.40176]
[1729709918620,4.89461269,2491.6,2491.5,0.40176]
[1729709919310,4.49284269,2491.6,2491.2,1.00457]
[1729709919513,7.63284269,2491.6,2491.0,44.95054]
[1729709919716,0.40181,2491.4,2491.3,0.4018]
[1729709920223,0.40179,2491.5,2491.4,0.40178]
[1729709920614,4.77093845,2491.5,2491.4,0.40178]
[1729709921514,4.36914845,2491.5,2491.4,0.40178]
[1729709921919,4.45119977,2491.6,2491.3,1.00453]
[1729709922115,4.77926,2491.7,2491.3,1.00453]
[1729709922432,2.9588,2491.7,2491.6,0.40176]
[1729709923222,0.40171,2492.0,2491.9,0.4017]
[1729709923426,3.0014,2492.0,2491.9,0.4017]
[1729709927529,3.60946,2492.3,2492.2,0.40167]
[1729709927824,5.14036,2492.3,2492.2,0.40167]
[1729709928215,6.54506,2492.3,2492.2,0.40167]
[1729709928422,0.40168,2492.2,2492.1,0.40167]
[1729709928921,0.40168,2492.2,2491.9,1.704]
[1729709928922,0.4017,2492.1,2492.0,0.40169]
[1729709929116,0.40168,2492.1,2492.0,0.40169]
[1729709929316,0.4017,2492.0,2491.9,1.704]
[1729709929715,3.14,2492.1,2491.5,3.2078]
[1729709929931,0.40174,2491.8,2491.7,0.40173]
[1729709930125,0.40174,2491.8,2491.7,0.40174]
[1729709930126,0.40175,2491.8,2491.7,0.40174]
[1729709930320,3.29885,2491.8,2491.7,0.40174]
[1729709931124,2.8971,2491.8,2491.7,0.40174]
[1729709931626,0.40167,2492.2,2491.9,0.40172]
[1729709931925,3.2078,2492.3,2492.2,0.40167]
[1729709932121,3.2078,2492.7,2492.1,3.14]
[1729709932322,3.2078,2493.0,2492.6,3.5416]
[1729709932529,3.2078,2493.0,2492.9,3.54156]
[1729709932932,3.60929,2493.3,2493.2,0.40151]
[1729709933225,4.38219518,2493.3,2493.2,0.40151]
[1729709933421,4.38219518,2493.3,2493.2,4.41271]
[1729709933625,3.60924,2493.7,2493.5,0.40146]
[1729709934029,4.47604434,2493.6,2493.5,0.40146]
[1729709934834,8.48644434,2493.6,2493.2,1.5514]
[1729709935030,0.40148,2493.4,2493.2,0.4015]
[1729709935229,1.8708,2493.3,2493.1,1.704]
[1729709935431,6.04749374,2493.3,2493.1,1.704]
[1729709935633,0.40151,2493.2,2493.1,1.704]
[1729709936337,1.4693,2493.3,2492.9,4.844]
[1729709936532,0.40153,2493.1,2492.9,2.10556]
[1729709936733,4.2953176,2493.2,2492.7,3.14]
[1729709936936,6.2101676,2493.0,2492.8,0.40157]
[1729709937127,1.91485,2493.0,2492.8,0.40157]
[1729709937532,4.63992521,2492.9,2492.8,0.40157]
[1729709937739,1.4693,2493.3,2492.9,0.40154]
[1729709938037,1.4693,2493.3,2492.9,3.54154]
[1729709938038,0.40153,2493.1,2492.9,3.54154]
[1729709938229,0.40154,2493.1,2492.9,3.54155]
[1729709938432,0.40154,2493.1,2492.9,0.40155]
[1729709938632,4.31140899,2493.2,2492.9,0.40155]
[1729709938833,0.40154,2493.0,2492.9,0.40155]
[1729709939644,0.40157,2492.8,2492.7,5.24558]
[1729709939830,0.40157,2492.8,2492.5,2.4406]
[1729709939831,0.40157,2492.8,2492.5,4.697]
[1729709940039,0.40157,2492.8,2492.7,1.704]
[1729709940440,0.40157,2492.8,2492.6,0.40159]
[1729709940441,0.40159,2492.7,2492.6,2.10559]
[1729709940844,0.40158,2492.8,2492.7,0.40159]
[1729709941044,1.4992,2493.0,2492.7,0.40159]
[1729709941239,0.40156,2492.9,2492.7,0.40159]
[1729709941640,1.4992,2493.0,2492.7,0.40159]
[1729709941845,0.40157,2492.8,2492.7,0.40159]
[1729709942246,0.40156,2492.9,2492.8,0.40157]
[1729709942449,0.40157,2492.8,2492.7,0.40158]
[1729709943045,0.40157,2492.8,2492.7,4.41358]
[1729709943847,0.40157,2492.8,2492.6,2.10459]
[1729709944149,4.707,2493.0,2492.6,1.703]
[1729709944349,0.40158,2492.8,2492.7,0.40159]
[1729709944545,4.707,2493.0,2492.7,0.40159]
[1729709944755,4.707,2493.0,2492.8,0.40156]
[1729709945044,0.40156,2492.9,2492.8,0.40156]
[1729709945251,0.40156,2492.9,2492.7,0.40158]
[1729709945443,1.4992,2493.0,2492.7,3.14]
[1729709945640,6.1904,2493.3,2492.7,3.14]
[1729709945851,0.40156,2492.9,2492.8,0.40157]
[1729709946045,0.40155,2493.0,2492.9,0.40155]
[1729709946354,0.40153,2493.1,2493.0,0.40153]
[1729709947043,0.40153,2493.1,2492.7,3.14]
[1729709947044,0.40152,2493.1,2492.7,3.14]
[1729709947247,0.40153,2493.1,2493.0,0.40153]
[1729709947653,0.40154,2493.0,2492.9,0.40154]
[1729709947946,5.71128478,2493.2,2492.7,3.14]
[1729709948258,0.40156,2492.9,2492.8,0.40156]
[1729709948552,5.71128478,2493.2,2492.7,1.703]
[1729709948750,1.557,2492.8,2492.4,3.2078]
[1729709948955,1.5099,2492.7,2492.4,3.2078]
[1729709949249,0.40162,2492.6,2492.5,0.40161]
[1729709949550,0.40164,2492.5,2492.4,0.40163]
[1729709949750,0.40165,2492.3,2492.2,41.20166]
[1729709949955,7.06654462,2492.6,2492.2,41.20166]
[1729709949956,0.40165,2492.4,2492.3,0.40164]
[1729709950153,1.4775,2492.6,2492.3,3.14]
[1729709950350,4.7177,2492.7,2492.5,3.14]
[1729709950548,4.7177,2492.7,2492.6,0.4016]
[1729709951663,5.11929,2492.7,2492.6,0.4016]
[1729709951952,4.7177,2492.7,2492.6,0.4016]
[1729709954055,4.7177,2492.7,2492.5,1.746]
[1729709954056,12.92338821,2492.7,2492.5,1.746]
[1729709954255,12.92338821,2492.7,2492.2,40.8]
[1729709954256,5.4293,2492.6,2492.2,40.8]
[1729709954558,0.40164,2492.4,2492.3,0.40163]
[1729709955056,0.40164,2492.4,2492.2,40.8]
[1729709955454,2.9806,2492.3,2492.2,40.8]
[1729709957058,3.38225,2492.3,2492.2,40.8]
[1729709957258,2.9806,2492.3,2492.2,41.20167]
[1729709957451,1.4173,2492.6,2492.2,40.8]
[1729709957652,1.4173,2492.6,2492.4,3.54163]
[1729709958451,3.2078,2492.7,2492.4,3.14]
[1729709958756,3.2078,2492.7,2492.6,0.4016]
[1729709958956,2.9806,2492.8,2492.6,3.14]
[1729709959554,3.38217,2492.8,2492.6,3.5416]
[1729709959761,2.9806,2492.8,2492.6,3.5416]
[1729709959952,3.2078,2493.2,2492.6,3.14]
[1729709960258,7.35685161,2493.1,2492.8,3.14]
[1729709960463,7.35685161,2493.1,2493.0,0.40154]
[1729709960861,0.40155,2493.0,2492.8,0.40157]
[1729709961361,0.40156,2492.9,2492.7,3.54158]
[1729709961856,7.35685161,2493.1,2492.7,3.14]
[1729709962057,7.35685161,2493.1,2492.5,1.4597]
[1729709962058,0.40159,2492.7,2492.5,0.40161]
[1729709962259,7.35685161,2493.1,2492.4,4.6593]
[1729709962466,0.40159,2492.7,2492.5,0.40161]
[1729709962656,4.37521066,2492.9,2492.4,4.6593]
[1729709962862,0.40159,2492.7,2492.5,0.40161]
[1729709963165,0.40158,2492.8,2492.4,7.8671]
[1729709963363,2.8082,2493.1,2492.7,3.14]
[1729709963567,4.71488714,2493.0,2492.8,0.40157]
[1729709963863,0.40154,2493.0,2492.7,3.14]
[1729709964165,0.40154,2493.0,2492.9,3.14]
[1729709965964,0.40154,2493.0,2492.8,0.40157]
[1729709966360,2.8082,2493.1,2492.8,0.40157]
[1729709966562,0.40156,2492.9,2492.8,0.40157]
[1729709966873,4.25017195,2493.0,2492.7,0.40158]
[1729709967167,0.40159,2492.8,2492.6,0.40159]
[1729709967368,0.40158,2492.8,2492.6,0.40159]
[1729709967668,4.25017195,2493.0,2492.6,0.40159]
[1729709967871,0.40162,2492.5,2492.4,3.60943]
[1729709968163,0.40163,2492.5,2492.4,0.40163]
[1729709968667,1.5019,2492.6,2492.2,45.685]
[1729709968870,0.40163,2492.5,2492.4,0.40163]
[1729709969162,0.40162,2492.5,2492.3,2.14664]
[1729709969361,6.01828939,2492.6,2492.3,4.885]
[1729709969565,6.01828939,2492.6,2492.5,0.40162]
[1729709972066,6.41988939,2492.6,2492.5,0.40162]
[1729709972568,0.40163,2492.5,2492.4,0.40163]
[1729709972763,0.40163,2492.5,2492.3,0.40164]
[1729709972970,0.40163,2492.5,2492.2,42.546]
[1729709973270,6.01828939,2492.6,2492.2,45.686]
[1729709973464,0.40165,2492.3,2492.2,46.08766]
[1729709973971,0.40165,2492.3,2492.2,42.94766]
[1729709974174,0.40164,2492.4,2492.3,0.40164]
[1729709974363,0.40164,2492.4,2492.2,42.546]
[1729709974364,6.01828939,2492.6,2492.2,42.546]
[1729709974560,0.40162,2492.5,2492.4,0.40162]
[1729709974869,1.90352,2492.6,2492.5,0.40162]
[1729709975077,0.40163,2492.5,2492.2,40.8]
[1729709975268,4.70185582,2492.5,2492.4,0.40164]
[1729709975463,5.80212582,2492.6,2492.2,40.8]
[1729709975769,1.9035,2492.6,2492.5,0.40162]
[1729709978070,1.9035,2492.6,2492.4,0.40163]
[1729709978071,0.40164,2492.5,2492.4,0.40163]
[1729709978466,4.48591719,2492.5,2492.4,0.40163]
[1729709978869,1.90351,2492.6,2492.5,0.40162]
[1729709979074,1.5019,2492.6,2492.5,0.40162]
[1729709979478,1.4634,2492.7,2492.6,0.4016]
[1729709981372,1.4634,2492.7,2492.6,3.5416]
[1729709982079,1.4039,2492.9,2492.8,0.40157]
[1729709982080,1.80546,2492.9,2492.8,0.40157]
[1729709982281,1.4039,2492.9,2492.8,0.40157]
[1729709982984,1.80546,2492.9,2492.8,0.40157]
[1729709986180,1.4039,2492.9,2492.4,4.14408]
[1729709986380,0.4016,2492.7,2492.6,0.40158]
[1729709988082,0.4016,2492.6,2492.5,2.10461]
[1729709988280,3.305,2492.6,2492.5,0.40161]
[1729709990185,2.9034,2492.6,2492.5,0.40161]
[1729709990381,3.305,2492.6,2492.5,0.40161]
[1729709990978,2.9034,2492.6,2492.5,0.40161]
[1729709994994,1.484,2492.6,2492.5,0.40161]
[1729709995494,1.484,2492.6,2492.5,3.60941]
[1729709995893,1.484,2492.6,2492.5,0.40161]
[1729709996586,2.8657,2492.9,2492.4,4.843]
[1729709996782,3.26726,2492.9,2492.8,0.40157]
[1729709997195,7.87404009,2492.9,2492.8,0.40157]
[1729709997695,7.47248009,2492.9,2492.5,1.00404]
[1729709997892,7.47248009,2492.9,2492.4,4.843]
[1729709997893,1.82489,2492.8,2492.7,0.40158]
[1729709998395,6.44646128,2492.8,2492.7,0.40158]
[1729709998593,6.04487128,2492.8,2492.4,5.84709]
[1729709998889,0.4016,2492.7,2492.6,0.40159]
[1729710000291,8.3306734,2492.7,2492.0,1.04064003]
[1729710000588,8.3306734,2492.7,2491.6,2.60160008]
[1729710000589,0.4017,2492.0,2491.6,4.65019003]
[1729710000799,4.2672,2491.9,2491.7,3.14]
[1729710000992,8.9876034,2491.9,2491.8,0.40173]
[1729710001292,2.8618,2491.9,2491.8,0.40173]
[1729710001486,4.6419,2492.2,2492.1,0.40168]
[1729710001684,1.3984,2492.2,2492.1,3.54168]
[1729710001890,5.86332563,2492.2,2492.1,3.54168]
[1729710002496,3.27774,2492.4,2492.3,0.40165]
[1729710002696,4.67614,2492.4,2492.3,0.40165]
[1729710002898,4.2745,2492.4,2492.3,0.40165]
[1729710003097,3.2078,2492.5,2492.4,0.40164]
[1729710003297,0.40158,2492.8,2492.5,1.00406]
[1729710003298,2.8404,2492.8,2492.5,1.00406]
[1729710003489,3.60931,2493.2,2492.9,0.40156]
[1729710003690,2.8524,2493.1,2493.0,3.54154]
[1729710003901,7.23467307,2493.1,2493.0,3.54154]
[1729710006002,7.63619307,2493.1,2492.8,3.14]
[1729710006205,7.63619307,2493.1,2493.0,0.40154]
[1729710006800,7.63619307,2493.1,2493.0,41.20154]
[1729710007001,4.38227307,2493.1,2493.0,41.20154]
[1729710007798,4.38227307,2493.1,2493.0,44.34154]
[1729710008296,3.2078,2493.7,2493.6,0.40144]
[1729710008697,1.5028,2493.8,2493.7,0.40143]
[1729710008898,1.5028,2493.8,2493.7,2.10443]
[1729710009495,3.2078,2494.3,2494.2,0.40135]
[1729710009699,0.40126,2494.8,2494.0,0.40137]
[1729710009700,0.40135,2494.2,2494.0,0.40137]
[1729710009894,0.4013,2494.5,2494.1,2.10335]
[1729710010096,0.40134,2494.3,2494.1,2.10335]
[1729710010299,0.40134,2494.3,2494.2,1.702]
[1729710011000,1.4927,2494.4,2494.3,0.40133]
[1729710011198,1.89403,2494.4,2494.2,2.10334]
[1729710011392,4.35112047,2494.3,2494.2,1.702]
[1729710011705,1.4927,2494.4,2494.2,1.702]
[1729710012002,4.35112047,2494.3,2493.9,6.3478]
[1729710012194,7.55892047,2494.3,2494.0,1.701]
[1729710012395,0.40137,2494.1,2494.0,1.701]
[1729710013004,7.55892047,2494.3,2494.0,1.701]
[1729710013307,0.40133,2494.3,2494.1,3.54135]
[1729710013604,0.40134,2494.3,2494.1,0.40135]
[1729710014299,1.4927,2494.4,2494.0,3.119]
[1729710014494,1.4927,2494.4,2494.1,1.701]
[1729710014495,3.2078,2494.3,2494.1,1.701]
[1729710014695,3.60914,2494.3,2494.2,0.40135]
[1729710015105,3.60914,2494.3,2494.1,1.701]
[1729710015308,7.41662389,2494.3,2493.9,1.701]
[1729710015510,0.40138,2494.0,2493.9,2.10239]
[1729710015703,0.40138,2494.1,2493.9,2.10239]
[1729710016108,4.20882389,2494.0,2493.9,2.10239]
[1729710016598,4.20882389,2494.0,2493.9,1.701]
[1729710016797,4.61020389,2494.0,2493.9,1.701]
[1729710017707,4.20882389,2494.0,2493.9,2.10239]
[1729710018999,3.2078,2494.3,2493.9,8.8506]
[1729710019206,0.40136,2494.2,2494.0,0.40137]
[1729710019402,0.40136,2494.2,2494.1,0.40136]
[1729710019609,0.40136,2494.1,2494.0,2.10237]
[1729710020108,0.40136,2494.1,2494.0,1.701]
[1729710020311,0.40136,2494.2,2494.1,0.40136]
[1729710020503,0.40136,2494.2,2494.0,1.701]
[1729710020504,0.40136,2494.2,2494.0,2.10237]
[1729710020705,0.40136,2494.1,2494.0,2.10237]
[1729710020906,3.2078,2494.3,2494.0,2.10237]
[1729710021108,0.40136,2494.1,2494.0,2.10237]
[1729710022610,3.2078,2494.3,2494.0,1.701]
[1729710022806,4.68025157,2494.1,2494.0,1.701]
[1729710023007,4.27889157,2494.2,2493.8,0.4014]